bitfinex-derivatives/quotes_BTCF0:USTF0_20251009
["timestamp","ask_amount","ask_price","bid_price","bid_amount"]
[1759997437157,0.03437744,121850.0,121840.0,0.7353584]
[1759997437356,0.03437744,121850.0,121840.0,1.4808784]
[1759997437760,0.03437744,121850.0,121840.0,0.7353584]
[1759997437955,0.03437744,121850.0,121840.0,1.0961584]
[1759997438159,0.03437744,121850.0,121840.0,1.8416384]
[1759997438353,0.39517744,121850.0,121840.0,0.7353584]
[1759997438559,0.39517744,121850.0,121840.0,1.4807984]
[1759997439058,0.39517744,121850.0,121840.0,0.7353584]
[1759997439359,0.39517744,121850.0,121840.0,3.5306784]
[1759997439558,0.39517744,121850.0,121840.0,3.5306384]
[1759997439757,0.41632744,121850.0,121840.0,3.5306384]
[1759997439959,0.41632744,121850.0,121840.0,2.7852384]
[1759997440258,0.42996744,121850.0,121840.0,2.3852384]
[1759997440558,0.39517744,121850.0,121840.0,2.3852384]
[1759997441153,0.39517744,121850.0,121840.0,3.1307184]
[1759997441554,0.39517744,121850.0,121840.0,2.3852384]
[1759997441754,0.39517744,121850.0,121840.0,2.45139707]
[1759997442058,0.39517744,121850.0,121840.0,3.19679707]
[1759997442454,0.39517744,121850.0,121840.0,2.45139707]
[1759997442854,0.39517744,121850.0,121840.0,3.19675707]
[1759997443555,0.39517744,121850.0,121840.0,3.19671707]
[1759997444159,0.39517744,121850.0,121840.0,3.1305584]
[1759997444460,0.39517744,121850.0,121840.0,2.3852384]
[1759997444662,0.39517744,121850.0,121840.0,3.1305184]
[1759997444961,0.39517744,121850.0,121840.0,2.3852384]
[1759997445161,0.39517744,121850.0,121840.0,3.1304784]
[1759997445461,0.39517744,121850.0,121840.0,2.3852384]
[1759997445662,0.39517744,121850.0,121840.0,3.1304784]
[1759997445857,0.39517744,121850.0,121840.0,2.3852384]
[1759997446059,0.39517744,121850.0,121840.0,3.1303984]
[1759997446763,0.41657744,121850.0,121840.0,2.9033384]
[1759997447865,0.42962744,121850.0,121840.0,0.2083784]
[1759997448066,0.42962744,121850.0,121840.0,2.2581784]
[1759997448265,0.42962744,121850.0,121840.0,3.0032584]
[1759997448662,0.41657744,121850.0,121840.0,3.0032584]
[1759997448862,0.39517744,121850.0,121840.0,3.0032584]
[1759997449861,0.51167904,121850.0,121840.0,0.1083784]
[1759997450063,0.51167904,121850.0,121840.0,2.8590184]
[1759997450256,0.42962744,121850.0,121840.0,2.1581384]
[1759997450566,0.39517744,121850.0,121840.0,2.1651184]
[1759997450766,0.39517744,121850.0,121840.0,2.9100784]
[1759997451260,0.39517744,121850.0,121840.0,2.1651184]
[1759997451664,0.39517744,121850.0,121840.0,2.9099984]
[1759997452067,0.39517744,121850.0,121840.0,2.4051184]
[1759997452366,0.39517744,121850.0,121840.0,3.1499584]
[1759997453462,0.39517744,121850.0,121840.0,2.4051184]
[1759997453657,0.39517744,121850.0,121840.0,3.1499184]
[1759997454469,0.39517744,121850.0,121840.0,2.4051184]
[1759997454767,0.39517744,121850.0,121840.0,3.1498384]
[1759997455767,0.39517744,121850.0,121840.0,0.3553584]
[1759997455970,0.41722744,121850.0,121840.0,0.1083784]
[1759997456266,0.42998744,121850.0,121840.0,2.2581384]
[1759997456671,0.42998744,121850.0,121840.0,3.0027784]
[1759997456972,0.42998744,121850.0,121840.0,2.4581384]
[1759997457271,0.42998744,121850.0,121840.0,3.2027784]
[1759997457475,0.42998744,121850.0,121840.0,2.4581384]
[1759997457771,0.42998744,121850.0,121840.0,3.2027784]
[1759997457971,0.42998744,121850.0,121840.0,2.4581384]
[1759997458270,0.42998744,121850.0,121840.0,2.9027384]
[1759997458467,0.42998744,121850.0,121840.0,2.1581384]
[1759997458671,0.42998744,121850.0,121840.0,2.9026984]
[1759997458971,0.42998744,121850.0,121840.0,2.1581384]
[1759997459167,0.42998744,121850.0,121840.0,2.9026984]
[1759997459473,0.42998744,121850.0,121840.0,2.2881384]
[1759997459672,0.42998744,121850.0,121840.0,3.0326984]
[1759997459971,0.42998744,121850.0,121840.0,2.2881384]
[1759997460172,0.42998744,121850.0,121840.0,3.0326584]
[1759997460573,0.39517744,121850.0,121840.0,3.0395984]
[1759997461072,0.39517744,121850.0,121840.0,3.0395584]
[1759997461479,0.39517744,121850.0,121840.0,2.2951184]
[1759997461777,0.39517744,121850.0,121840.0,3.2395584]
[1759997462073,0.39517744,121850.0,121840.0,2.4951184]
[1759997462273,0.39517744,121850.0,121840.0,3.2395184]
[1759997462469,0.39517744,121850.0,121840.0,2.4951184]
[1759997462679,0.39517744,121850.0,121840.0,3.2395184]
[1759997463173,0.39517744,121850.0,121840.0,3.2394784]
[1759997463371,0.39517744,121850.0,121840.0,2.4951184]
[1759997463871,0.39517744,121850.0,121840.0,3.2394384]
[1759997464268,0.39517744,121850.0,121840.0,3.3051442]
[1759997464473,0.39517744,121850.0,121840.0,2.5608242]
[1759997464672,0.39517744,121850.0,121840.0,3.3051442]
[1759997465074,0.39517744,121850.0,121840.0,3.3051042]
[1759997465476,0.39517744,121850.0,121840.0,0.5110642]
[1759997465680,0.39517744,121850.0,121840.0,3.3050642]
[1759997467085,0.39517744,121850.0,121840.0,2.5608242]
[1759997467382,0.39517744,121850.0,121840.0,3.3050242]
[1759997467581,0.39517744,121850.0,121840.0,2.5608242]
[1759997467981,0.39517744,121850.0,121840.0,3.3049842]
[1759997468379,0.39517744,121850.0,121840.0,2.5608242]
[1759997468573,0.39517744,121850.0,121840.0,3.3049442]
[1759997469987,0.39517744,121850.0,121840.0,0.5110642]
[1759997470186,0.39517744,121850.0,121840.0,3.3049042]
[1759997470387,0.39517744,121850.0,121840.0,2.5608242]
[1759997470688,0.39517744,121850.0,121840.0,3.3048642]
[1759997471484,0.39517744,121850.0,121840.0,2.5608242]
[1759997471788,0.39517744,121850.0,121840.0,3.3048642]
[1759997471989,0.39517744,121850.0,121840.0,2.5608242]
[1759997472192,0.39517744,121850.0,121840.0,3.3048242]
[1759997472490,0.39517744,121850.0,121840.0,0.5110642]
[1759997472692,0.39517744,121850.0,121840.0,3.3047842]
[1759997472884,0.39517744,121850.0,121840.0,0.2840842]
[1759997472885,0.41722744,121850.0,121840.0,0.2840842]
[1759997473085,0.42998744,121850.0,121840.0,3.0778042]
[1759997473489,0.42998744,121850.0,121840.0,0.2840842]
[1759997473690,0.42998744,121850.0,121840.0,3.0777642]
[1759997474589,0.42998744,121850.0,121840.0,3.0777242]
[1759997475394,0.39517744,121850.0,121840.0,2.3338442]
[1759997475588,0.39517744,121850.0,121840.0,3.0846642]
[1759997475784,0.39517744,121850.0,121840.0,3.2946642]
[1759997475987,0.40793744,121850.0,121840.0,2.5438442]
[1759997476194,0.40793744,121850.0,121840.0,3.0676842]
[1759997476495,0.40793744,121850.0,121840.0,2.3238442]
[1759997476696,0.40793744,121850.0,121840.0,3.0676842]
[1759997477092,0.40793744,121850.0,121840.0,3.0676442]
[1759997477493,0.40793744,121850.0,121840.0,2.3238442]
[1759997477696,0.40793744,121850.0,121840.0,3.0676442]
[1759997478094,0.40793744,121850.0,121840.0,3.0676042]
[1759997478493,0.40793744,121850.0,121840.0,2.3238442]
[1759997478699,0.40793744,121850.0,121840.0,3.0676042]
[1759997478998,0.40793744,121850.0,121840.0,2.3238442]
[1759997479193,0.40793744,121850.0,121840.0,3.0675642]
[1759997479497,0.40793744,121850.0,121840.0,2.3238442]
[1759997479698,0.40793744,121850.0,121840.0,3.0675642]
[1759997479893,0.39517744,121850.0,121840.0,3.0675642]
[1759997480100,0.39517744,121850.0,121840.0,2.3238442]
[1759997480297,0.39517744,121850.0,121840.0,3.0745042]
[1759997480494,0.39517744,121850.0,121840.0,2.3308242]
[1759997480698,0.39517744,121850.0,121840.0,3.0745042]
[1759997480999,0.39517744,121850.0,121840.0,2.3308242]
[1759997481202,0.39517744,121850.0,121840.0,3.0744642]
[1759997481501,0.39517744,121850.0,121840.0,2.3308242]
[1759997481701,0.39517744,121850.0,121840.0,3.0744642]
[1759997481997,0.39517744,121850.0,121840.0,2.3308242]
[1759997482300,0.39517744,121850.0,121840.0,3.2944242]
[1759997482497,0.39517744,121850.0,121840.0,2.5508242]
[1759997482801,0.39517744,121850.0,121840.0,3.2944242]
[1759997483001,0.40173744,121850.0,121840.0,2.5508242]
[1759997483202,0.40173744,121850.0,121840.0,3.2286784]
[1759997484092,0.40173744,121850.0,121840.0,3.2286384]
[1759997484500,0.40173744,121850.0,121840.0,2.4851184]
[1759997484698,0.40173744,121850.0,121840.0,3.2286384]
[1759997484900,0.40173744,121850.0,121840.0,2.4851184]
[1759997485102,0.40173744,121850.0,121840.0,3.2285984]
[1759997485303,0.04093744,121850.0,121840.0,2.8851184]
[1759997485701,0.04093744,121850.0,121840.0,3.6286384]
[1759997486098,0.04093744,121850.0,121840.0,3.6287184]
[1759997486498,0.04093744,121850.0,121840.0,2.8851184]
[1759997486694,0.04093744,121850.0,121840.0,3.2459184]
[1759997486900,0.3608,121870.0,121860.0,0.02887]
[1759997487200,0.3608,121870.0,121860.0,1.1446349]
[1759997487601,0.3608,121880.0,121870.0,0.1121682]
[1759997487907,0.3608,121880.0,121870.0,0.3421682]
[1759997488103,0.3608,121880.0,121870.0,1.0858482]
[1759997488295,0.3608,121880.0,121870.0,0.3421682]
[1759997488699,0.3608,121880.0,121870.0,1.0859282]
[1759997488894,0.3608,121880.0,121870.0,1.0858882]
[1759997489100,0.3738,121880.0,121870.0,2.3938882]
[1759997489403,0.3738,121880.0,121870.0,3.1376082]
[1759997489604,0.3738,121880.0,121870.0,3.1375682]
[1759997490408,0.3738,121880.0,121870.0,2.3938882]
[1759997490705,0.3738,121880.0,121870.0,3.1375282]
[1759997490907,0.3738,121880.0,121870.0,2.3938882]
[1759997491202,0.3738,121880.0,121870.0,3.1375282]
[1759997491406,0.013,121880.0,121870.0,3.9066565]
[1759997491606,0.3608,121890.0,121880.0,0.1121614]
[1759997491797,0.3608,121900.0,121890.0,0.1051747]
[1759997491999,0.3608,121900.0,121890.0,0.4051747]
[1759997492305,0.3608,121900.0,121890.0,1.1490147]
[1759997492498,0.3608,121900.0,121890.0,0.4051747]
[1759997492800,0.3608,121900.0,121890.0,1.1490147]
[1759997493302,0.3608,121900.0,121890.0,0.4051747]
[1759997493503,0.3608,121900.0,121890.0,3.1984547]
[1759997494002,0.3608,121900.0,121890.0,2.4546947]
[1759997494201,0.3608,121900.0,121890.0,3.1984547]
[1759997494396,0.3608,121900.0,121890.0,2.4546947]
[1759997494602,0.3608,121900.0,121890.0,3.1984147]
[1759997494905,0.3608,121900.0,121890.0,2.4546947]
[1759997495102,0.3608,121900.0,121890.0,3.1983747]
[1759997495502,0.3608,121900.0,121890.0,2.4546947]
[1759997495708,0.3608,121900.0,121890.0,3.1983747]
[1759997496006,0.3608,121910.0,121900.0,0.110888]
[1759997496209,0.36736,121920.0,121910.0,0.1121413]
[1759997496405,0.36736,121920.0,121910.0,2.4915413]
[1759997496713,0.36736,121920.0,121910.0,3.2355013]
[1759997497404,0.36736,121920.0,121910.0,2.8915413]
[1759997497601,0.36736,121920.0,121910.0,3.6355413]
[1759997498004,0.36736,121920.0,121910.0,0.8421413]
[1759997498204,0.36736,121920.0,121910.0,3.6353813]
[1759997498405,0.00656,121920.0,121910.0,0.8421413]
[1759997498708,0.00656,121920.0,121910.0,2.8913413]
[1759997498905,0.00656,121920.0,121910.0,3.6352613]
[1759997499511,0.00656,121920.0,121910.0,3.70129016]
[1759997499707,0.00656,121920.0,121910.0,2.95733016]
[1759997499906,0.00656,121920.0,121910.0,3.70129016]
[1759997500509,0.00656,121920.0,121910.0,2.95725016]
[1759997500710,0.00656,121920.0,121910.0,3.70113016]
[1759997501110,0.00656,121920.0,121910.0,3.70109016]
[1759997501313,0.00656,121920.0,121910.0,2.95721016]
[1759997501513,0.02924482,121920.0,121910.0,3.70105016]
[1759997502312,0.02924482,121920.0,121910.0,3.30105016]
[1759997502513,0.02924482,121920.0,121910.0,3.31793016]
[1759997502813,0.02924482,121920.0,121910.0,3.66173016]
[1759997503013,0.02924482,121920.0,121910.0,2.91793016]
[1759997503313,0.02924482,121920.0,121910.0,3.66169016]
[1759997503515,0.02924482,121920.0,121910.0,2.91789016]
[1759997503815,0.02924482,121920.0,121910.0,3.66161016]
[1759997504514,0.02924482,121920.0,121910.0,2.91789016]
[1759997504713,0.02924482,121920.0,121910.0,3.66157016]
[1759997505014,0.02924482,121920.0,121910.0,2.91789016]
[1759997505214,0.02924482,121920.0,121910.0,3.66153016]
[1759997505910,0.02924482,121920.0,121910.0,2.91789016]
[1759997506114,0.02924482,121920.0,121910.0,3.66145016]
[1759997506421,0.02924482,121920.0,121910.0,2.91777016]
[1759997506621,0.02924482,121920.0,121910.0,2.54999016]
[1759997506622,0.40312482,121920.0,121910.0,2.54999016]
[1759997506911,0.42590482,121920.0,121910.0,2.31995016]
[1759997507115,0.42590482,121920.0,121910.0,3.06367016]
[1759997507311,0.42590482,121920.0,121910.0,0.27119016]
[1759997507510,0.42590482,121920.0,121910.0,3.06363016]
[1759997507911,0.42590482,121920.0,121910.0,2.31995016]
[1759997508111,0.42590482,121920.0,121910.0,3.06371016]
[1759997508905,0.42590482,121920.0,121910.0,2.31995016]
[1759997509106,0.42590482,121920.0,121910.0,3.08363016]
[1759997509107,0.50790932,121920.0,121910.0,3.08363016]
[1759997509314,0.42590482,121920.0,121910.0,0.17119016]
[1759997509505,0.42590482,121920.0,121910.0,3.05235016]
[1759997509712,0.42590482,121920.0,121910.0,0.17119016]
[1759997509912,0.42590482,121920.0,121910.0,0.28119016]
[1759997510113,0.42590482,121920.0,121910.0,3.07351016]
[1759997510517,0.42590482,121920.0,121910.0,2.32987016]
[1759997510713,0.42590482,121920.0,121910.0,3.07351016]
[1759997510913,0.42590482,121920.0,121910.0,2.32987016]
[1759997511113,0.42590482,121920.0,121910.0,3.07347016]
[1759997511417,0.42590482,121920.0,121910.0,2.32987016]
[1759997511618,0.42590482,121920.0,121910.0,3.07347016]
[1759997511814,0.42590482,121920.0,121910.0,0.17119016]
[1759997512014,0.42590482,121920.0,121910.0,3.05211016]
[1759997512514,0.42590482,121920.0,121910.0,2.31987016]
[1759997512916,0.42590482,121920.0,121910.0,2.51987016]
[1759997513116,0.42590482,121920.0,121910.0,3.24471899]
[1759997513318,0.39004482,121920.0,121910.0,3.24471899]
[1759997513914,0.39004482,121920.0,121910.0,2.75712536]
[1759997514421,0.39004482,121920.0,121910.0,3.15712536]
[1759997514617,0.39004482,121920.0,121910.0,3.90072536]
[1759997515320,0.02924482,121920.0,121910.0,4.26152536]
[1759997515515,0.02924482,121920.0,121910.0,4.26160536]
[1759997515909,0.02924482,121920.0,121910.0,3.51792536]
[1759997516114,0.02924482,121920.0,121910.0,4.26156536]
[1759997516415,0.02924482,121920.0,121910.0,3.51792536]
[1759997516618,0.3608,121940.0,121930.0,0.0819978]
[1759997516921,0.37421,121940.0,121930.0,0.65792417]
[1759997517109,0.37421,121940.0,121930.0,1.40156417]
[1759997517421,0.37421,121940.0,121930.0,0.65792417]
[1759997517619,0.37421,121940.0,121930.0,1.40152417]
[1759997517916,0.3608,121940.0,121930.0,0.65792417]
[1759997518117,0.3608,121940.0,121930.0,1.40152417]
[1759997518420,0.3608,121940.0,121930.0,0.65792417]
[1759997518620,0.3608,121940.0,121930.0,1.40148417]
[1759997518916,0.3608,121940.0,121930.0,0.65792417]
[1759997519123,0.37421,121940.0,121930.0,1.40148417]
[1759997519923,0.37421,121940.0,121930.0,0.65792417]
[1759997520127,0.37421,121940.0,121930.0,1.40144417]
[1759997520529,0.37421,121940.0,121930.0,1.40140417]
[1759997521225,0.37421,121940.0,121930.0,1.15365491]
[1759997521426,0.4329597,121940.0,121930.0,1.40958128]
[1759997521624,0.4329597,121940.0,121930.0,3.45802128]
[1759997521827,0.4329597,121940.0,121930.0,3.4393532]
[1759997522425,0.4329597,121940.0,121930.0,2.6959132]
[1759997522622,0.4329597,121940.0,121930.0,3.4393132]
[1759997522927,0.4329597,121940.0,121930.0,2.6959132]
[1759997523223,0.4329597,121940.0,121930.0,0.6474332]
[1759997523424,0.4329597,121940.0,121930.0,2.6959132]
[1759997523619,0.4329597,121940.0,121930.0,2.43180972]
[1759997524019,0.4329597,121940.0,121930.0,3.17512972]
[1759997524425,0.4329597,121940.0,121930.0,2.68773609]
[1759997524625,0.4329597,121940.0,121930.0,3.43105609]
[1759997525023,0.37421,121940.0,121930.0,3.43105609]
[1759997525221,0.37421,121940.0,121930.0,3.41136226]
[1759997525426,0.37421,121940.0,121930.0,2.66804226]
[1759997525622,0.43313565,121940.0,121930.0,3.41132226]
[1759997525824,0.43313565,121940.0,121930.0,2.67623944]
[1759997526029,0.05892565,121940.0,121930.0,3.03703944]
[1759997526222,0.41972565,121950.0,121940.0,0.0819911]
[1759997526527,0.3608,121950.0,121940.0,1.40115747]
[1759997527028,0.3608,121950.0,121940.0,1.40119747]
[1759997527228,0.43313565,121960.0,121950.0,0.0819844]
[1759997527523,0.81972565,121960.0,121950.0,1.38139077]
[1759997527723,0.81972565,121960.0,121950.0,1.1267444]
[1759997527918,0.81972565,121960.0,121950.0,0.63919077]
[1759997528127,0.83313565,121960.0,121950.0,3.1750644]
[1759997528628,0.85565707,121960.0,121950.0,3.1750644]
[1759997529129,0.87774707,121960.0,121950.0,2.9850244]
[1759997529427,0.87774707,121960.0,121950.0,3.2050244]
[1759997529725,0.87774707,121960.0,121950.0,3.2049444]
[1759997530227,0.87774707,121960.0,121950.0,0.4132644]
[1759997530427,0.87774707,121960.0,121950.0,3.2048644]
[1759997530622,0.87774707,121960.0,121950.0,0.47974373]
[1759997530823,0.87774707,121960.0,121950.0,2.7839501]
[1759997531129,0.85565707,121960.0,121950.0,3.5272301]
[1759997531622,0.85565707,121960.0,121950.0,2.7839501]
[1759997531827,0.85565707,121960.0,121950.0,3.5271901]
[1759997532330,0.85565707,121960.0,121950.0,2.7839501]
[1759997532528,0.85565707,121960.0,121950.0,3.5271501]
[1759997532829,0.84224707,121960.0,121950.0,2.7839501]
[1759997533225,0.78332142,121960.0,121950.0,3.5271101]
[1759997533522,0.78332142,121960.0,121950.0,3.27118373]
[1759997533826,0.78332142,121960.0,121950.0,3.5271101]
[1759997534223,0.78332142,121960.0,121950.0,3.5269501]
[1759997534620,0.79673142,121960.0,121950.0,3.5269501]
[1759997536131,0.78332142,121960.0,121950.0,3.5269501]
[1759997536327,0.42252142,121960.0,121950.0,3.5269501]
[1759997536933,0.42252142,121960.0,121950.0,3.5268301]
[1759997539332,0.42252142,121960.0,121950.0,3.5267501]
[1759997539534,0.42252142,121960.0,121950.0,3.5267101]
[1759997540333,0.42252142,121960.0,121950.0,0.7356701]
[1759997540633,0.42252142,121960.0,121950.0,2.7837101]
[1759997540833,0.42252142,121960.0,121950.0,3.5265501]
[1759997541136,0.42252142,121960.0,121950.0,2.7837101]
[1759997541524,0.78332142,121960.0,121950.0,3.5265101]
[1759997541834,0.78332142,121960.0,121950.0,0.67154135]
[1759997542025,0.79673142,121960.0,121950.0,2.71958135]
[1759997542536,0.79673142,121960.0,121950.0,3.46234135]
[1759997543124,0.79673142,121960.0,121950.0,2.71958135]
[1759997543324,0.38332142,121960.0,121950.0,3.46234135]
[1759997543525,0.38332142,121960.0,121950.0,3.46230135]
[1759997545633,0.41955142,121960.0,121950.0,0.47974373]
[1759997545838,0.41955142,121960.0,121950.0,3.17038373]
[1759997546039,0.41955142,121960.0,121950.0,3.36218135]
[1759997546235,0.41955142,121960.0,121950.0,3.17038373]
[1759997546541,0.41955142,121960.0,121950.0,3.36218135]
[1759997547040,0.41955142,121960.0,121950.0,0.57154135]
[1759997547234,0.41955142,121960.0,121950.0,3.36210135]
[1759997547434,0.41955142,121960.0,121950.0,2.61950135]
[1759997547634,0.41955142,121960.0,121950.0,3.36206135]
[1759997547835,0.41955142,121960.0,121950.0,2.61950135]
[1759997548032,0.41955142,121960.0,121950.0,3.36206135]
[1759997548238,0.41955142,121960.0,121950.0,0.57154135]
[1759997548438,0.41955142,121960.0,121950.0,2.61950135]
[1759997548640,0.41955142,121960.0,121950.0,3.36206135]
[1759997549036,0.39701142,121960.0,121950.0,3.36206135]
[1759997549938,0.39701142,121960.0,121950.0,2.61950135]
[1759997550141,0.39701142,121960.0,121950.0,3.36206135]
[1759997550544,0.39701142,121960.0,121950.0,3.17026373]
[1759997550733,0.39701142,121960.0,121950.0,3.36206135]
[1759997550938,0.39701142,121960.0,121950.0,2.61950135]
[1759997551137,0.39701142,121960.0,121950.0,3.36206135]
[1759997551943,0.39701142,121960.0,121950.0,2.61950135]
[1759997552147,0.39701142,121960.0,121950.0,3.36206135]
[1759997554448,0.39701142,121960.0,121950.0,2.61950135]
[1759997554649,0.39701142,121960.0,121950.0,3.36206135]
[1759997556452,0.39701142,121960.0,121950.0,2.61950135]
[1759997556857,0.39701142,121960.0,121950.0,3.36206135]
[1759997558556,0.39701142,121960.0,121950.0,3.17026373]
[1759997558757,0.39701142,121960.0,121950.0,2.61950135]
[1759997559057,0.39701142,121960.0,121950.0,3.36202135]
[1759997563458,0.39701142,121960.0,121950.0,2.61950135]
[1759997563957,0.39701142,121960.0,121950.0,3.36202135]
[1759997564360,0.38332142,121960.0,121950.0,3.36202135]
[1759997564755,0.38332142,121960.0,121950.0,2.61950135]
[1759997564954,0.38332142,121960.0,121950.0,3.36202135]
[1759997565750,0.39659142,121960.0,121950.0,3.36202135]
[1759997565956,0.39659142,121960.0,121950.0,2.61950135]
[1759997566752,0.39659142,121960.0,121950.0,3.36202135]
[1759997567258,0.41850142,121960.0,121950.0,3.36198135]
[1759997567461,0.41850142,121960.0,121950.0,2.61946135]
[1759997567761,0.41850142,121960.0,121950.0,3.36198135]
[1759997567956,0.41850142,121960.0,121950.0,0.57154135]
[1759997568357,0.41850142,121960.0,121950.0,3.36198135]
[1759997568956,0.41850142,121960.0,121950.0,0.57154135]
[1759997569160,0.41850142,121960.0,121950.0,3.36198135]
[1759997570463,0.41850142,121960.0,121950.0,2.61946135]
[1759997570662,0.41850142,121960.0,121950.0,3.36198135]
[1759997571465,0.41850142,121960.0,121950.0,2.61946135]
[1759997571669,0.41850142,121960.0,121950.0,3.36198135]
[1759997572461,0.41850142,121960.0,121950.0,2.61946135]
[1759997572663,0.41850142,121960.0,121950.0,3.36198135]
[1759997573967,0.41850142,121960.0,121950.0,2.61946135]
[1759997574157,0.41850142,121960.0,121950.0,3.36198135]
[1759997574563,0.39659142,121960.0,121950.0,3.36198135]
[1759997574963,0.39659142,121960.0,121950.0,2.61946135]
[1759997575163,0.39659142,121960.0,121950.0,3.36198135]
[1759997575963,0.39659142,121960.0,121950.0,2.61946135]
[1759997576164,0.39659142,121960.0,121950.0,3.36198135]
[1759997577069,0.39659142,121960.0,121950.0,3.17018373]
[1759997577470,0.39659142,121960.0,121950.0,2.61946135]
[1759997577669,0.39659142,121960.0,121950.0,3.36198135]
[1759997578172,0.39659142,121960.0,121950.0,3.36194135]
[1759997578470,0.39659142,121960.0,121950.0,2.61946135]
[1759997578672,0.39659142,121960.0,121950.0,3.36194135]
[1759997579468,0.39659142,121960.0,121950.0,2.61946135]
[1759997579772,0.39659142,121960.0,121950.0,3.36194135]
[1759997579966,0.39659142,121960.0,121950.0,2.61946135]
[1759997580166,0.39659142,121960.0,121950.0,3.36194135]
[1759997580473,0.41948142,121960.0,121950.0,0.37974373]
[1759997580666,0.61127904,121960.0,121950.0,3.36194135]
[1759997580868,0.41948142,121960.0,121950.0,3.36194135]
[1759997581170,1.28505426,121960.0,121950.0,0.00128]
[1759997581367,1.47685188,121960.0,121950.0,0.00128]
[1759997581568,1.28505426,121960.0,121950.0,0.7202306]
[1759997581969,0.1179411,121940.0,121930.0,0.0819953]
[1759997582166,0.69306014,121940.0,121930.0,3.1402953]
[1759997582676,0.61106904,121940.0,121930.0,3.1402953]
[1759997582874,0.61164869,121940.0,121930.0,3.1402953]
[1759997583467,0.61164869,121940.0,121930.0,1.0923753]
[1759997583672,0.03595,121930.0,121920.0,2.31586]
[1759997583873,0.61164869,121930.0,121920.0,3.33213772]
[1759997584075,0.41985107,121930.0,121920.0,2.70965772]
[1759997584375,0.41985107,121930.0,121920.0,3.45213772]
[1759997584577,0.41985107,121930.0,121920.0,3.33213772]
[1759997584782,1.09364639,121930.0,121920.0,0.0820045]
[1759997585078,1.09364639,121930.0,121920.0,2.8725245]
[1759997586472,1.09364639,121930.0,121910.0,0.19179762]
[1759997586674,0.86234974,121920.0,121910.0,2.1300845]
[1759997586977,0.61164869,121920.0,121910.0,3.06440212]
[1759997588776,0.61164869,121920.0,121910.0,2.32188212]
[1759997588971,0.61164869,121920.0,121910.0,3.06444212]
[1759997589380,0.61164869,121920.0,121910.0,2.32188212]
[1759997589770,0.61164869,121920.0,121910.0,3.06448212]
[1759997589974,0.41985107,121920.0,121910.0,2.8726845]
[1759997590175,0.69365319,121920.0,121910.0,3.06448212]
[1759997590772,0.69365319,121920.0,121910.0,2.8726845]
[1759997591275,0.69365319,121920.0,121910.0,3.06448212]
[1759997591475,0.1179612,121910.0,121900.0,2.32213052]
[1759997591673,0.69365989,121910.0,121900.0,3.11477052]
[1759997591875,0.69365989,121910.0,121900.0,3.06477052]
[1759997592680,0.69365989,121910.0,121900.0,2.8729729]
[1759997592880,0.69365989,121910.0,121900.0,3.06477052]
[1759997593280,0.50186227,121910.0,121900.0,3.06477052]
[1759997594982,0.50186227,121910.0,121900.0,0.27381052]
[1759997595179,0.69365989,121910.0,121900.0,3.06489052]
[1759997596777,0.50186227,121910.0,121900.0,3.06489052]
[1759997596979,0.50186227,121910.0,121900.0,0.27381052]
[1759997597179,0.50186227,121910.0,121900.0,3.06497052]
[1759997597378,0.69365989,121910.0,121900.0,3.06497052]
[1759997597578,0.70021989,121910.0,121900.0,2.98295762]
[1759997598380,0.70021989,121910.0,121900.0,3.16497552]
[1759997598682,0.70021989,121910.0,121900.0,3.06497552]
[1759997599486,0.70021989,121910.0,121900.0,2.98295762]
[1759997599687,0.1179679,121900.0,121890.0,0.06598068]
[1759997599883,0.88546421,121900.0,121890.0,2.04856]
[1759997600090,0.88546421,121900.0,121890.0,2.79124]
[1759997600091,0.69366659,121900.0,121890.0,2.79124]
[1759997600290,0.69366659,121900.0,121890.0,2.98303762]
[1759997600788,0.69366659,121900.0,121890.0,2.79124]
[1759997600984,0.69366659,121900.0,121890.0,2.98303762]
[1759997601183,0.69366659,121900.0,121890.0,2.98307762]
[1759997601386,0.69366659,121900.0,121890.0,3.06510232]
[1759997601786,0.69366659,121900.0,121890.0,2.98307762]
[1759997603486,0.69366659,121900.0,121890.0,2.963375]
[1759997603889,0.50186897,121900.0,121890.0,2.77157738]
[1759997605084,0.50186897,121900.0,121890.0,2.85360208]
[1759997607194,0.56079462,121900.0,121890.0,2.85360208]
[1759997608393,0.56079462,121900.0,121890.0,2.11088208]
[1759997608693,0.56079462,121900.0,121890.0,2.85368208]
[1759997610594,0.56079462,121900.0,121890.0,0.0820247]
[1759997610794,0.1170559,121890.0,121880.0,2.38695809]
[1759997610990,0.50095697,121890.0,121880.0,3.08971809]
[1759997611193,0.50095697,121890.0,121880.0,3.17975809]
[1759997611394,0.55988262,121890.0,121880.0,3.17975809]
[1759997611697,0.50095697,121890.0,121880.0,3.17975809]
[1759997612192,0.55988262,121890.0,121880.0,3.17979809]
[1759997612499,0.55988262,121890.0,121880.0,2.43699809]
[1759997612697,0.55988262,121890.0,121880.0,3.17983809]
[1759997613697,0.55988262,121890.0,121880.0,2.9237865]
[1759997613889,0.55988262,121890.0,121880.0,0.1320265]
[1759997614097,0.55988262,121890.0,121880.0,2.8418]
[1759997614297,0.55988262,121890.0,121880.0,2.9238314]
[1759997614800,0.55988262,121890.0,121880.0,3.1738314]
[1759997614996,0.55988262,121890.0,121880.0,3.42988299]
[1759997615599,0.55988262,121890.0,121880.0,3.17988299]
[1759997615809,0.55988262,121890.0,121880.0,2.43704299]
[1759997616003,0.47785672,121890.0,121880.0,3.43988299]
[1759997616202,0.47785672,121890.0,121880.0,3.1838314]
[1759997616402,0.47785672,121890.0,121880.0,3.43988299]
[1759997616909,0.47785672,121890.0,121880.0,3.1838314]
[1759997617110,0.55988142,121890.0,121880.0,3.43988299]
[1759997617503,0.50095577,121890.0,121880.0,3.43988299]
[1759997618710,0.41893107,121890.0,121880.0,3.43988299]
[1759997619303,0.47785672,121890.0,121880.0,3.1838314]
[1759997619501,0.47785672,121890.0,121880.0,3.43988299]
[1759997619710,0.41893107,121890.0,121880.0,3.1838314]
[1759997619910,0.41893107,121890.0,121880.0,3.43988299]
[1759997620607,0.39651107,121890.0,121880.0,3.43988299]
[1759997621501,0.39651107,121890.0,121880.0,3.83988299]
[1759997621707,0.08202672,121890.0,121880.0,3.71389458]
[1759997622011,0.41972565,121900.0,121890.0,0.0820246]
[1759997622211,0.44306225,121900.0,121890.0,0.6294018]
[1759997622407,0.45567225,121900.0,121890.0,1.3722418]
[1759997622618,0.47809225,121900.0,121890.0,0.37335021]
[1759997622808,0.47809225,121900.0,121890.0,1.11619021]
[1759997623115,0.47809225,121900.0,121890.0,3.4212418]
[1759997623407,0.45567225,121900.0,121890.0,3.4212418]
[1759997623613,0.45567225,121900.0,121890.0,2.6784018]
[1759997623808,0.45567225,121900.0,121890.0,3.4212418]
[1759997625017,0.3967466,121900.0,121890.0,2.6784018]
[1759997625213,0.3967466,121900.0,121890.0,3.4212018]
[1759997625815,0.4188366,121900.0,121890.0,3.16511021]
[1759997626113,0.4188366,121900.0,121890.0,3.0783618]
[1759997626415,0.4188366,121900.0,121890.0,3.4211618]
[1759997627918,0.4253966,121900.0,121890.0,3.4211618]